bitfinex-derivatives/quotes_ETHF0:USTF0_20230403
["timestamp","ask_amount","ask_price","bid_price","bid_amount"]
[1680545399703,0.39271493,1799.9,1799.5,1.109]
[1680545399904,1.39271493,1799.9,1799.5,1.109]
[1680545400502,0.39271493,1799.9,1799.5,1.109]
[1680545401109,1.39271493,1799.9,1799.5,1.109]
[1680545402106,2.49871493,1799.9,1799.4,4.3178]
[1680545402611,1.1,1799.7,1799.4,3.2078]
[1680545406213,0.61426748,1799.6,1799.4,3.2078]
[1680545406608,1.1,1799.7,1799.4,3.2078]
[1680545406912,1.1,1799.7,1799.6,3.2078]
[1680545407310,1.16199326,1800.0,1799.6,3.2078]
[1680545407311,1.11,1799.9,1799.6,3.2078]
[1680545408611,1.11,1799.9,1799.8,3.2078]
[1680545412115,1.1,1800.0,1799.8,3.2078]
[1680545412717,0.54943468,1800.1,1799.8,3.2078]
[1680545412919,2.27199326,1800.2,1799.8,3.2078]
[1680545415719,7.12639326,1800.3,1800.0,3.2078]
[1680545415918,2.27199326,1800.3,1800.0,3.2078]
[1680545417223,1.16199326,1800.3,1800.2,3.2078]
[1680545417424,2.27199326,1800.5,1800.2,3.2078]
[1680545417720,2.27199326,1800.5,1800.4,3.2078]
[1680545418921,1.11,1800.5,1800.4,3.2078]
[1680545419622,4.34471913,1800.5,1800.0,3.2078]
[1680545419923,2.27183372,1800.3,1800.0,3.2078]
[1680545420316,1.11,1800.1,1800.0,3.2078]
[1680545421124,1.24231284,1800.1,1800.0,3.2078]
[1680545421321,0.13131284,1800.1,1800.0,3.2078]
[1680545421620,1.111,1800.3,1800.0,3.2078]
[1680545421826,1.111,1800.3,1800.2,3.2078]
[1680545422013,1.16183372,1800.4,1800.2,3.2078]
[1680545422216,0.87182582,1800.3,1800.2,3.2078]
[1680545423119,1.16183372,1800.3,1800.2,3.2078]
[1680545423427,0.87231612,1800.3,1800.2,3.2078]
[1680545432330,0.87231612,1800.4,1800.2,4.3148]
[1680545432637,0.87231612,1800.4,1800.3,1.111]
[1680545433130,0.87231612,1800.4,1800.3,2.111]
[1680545436131,1.00472845,1800.4,1800.3,2.111]
[1680545436331,0.13241233,1800.4,1800.3,2.111]
[1680545436636,1.00472845,1800.4,1800.3,2.111]
[1680545437630,0.13241233,1800.4,1800.3,2.111]
[1680545439734,0.13241233,1800.4,1800.3,1.111]
[1680545440336,1.00472845,1800.4,1800.2,4.3148]
[1680545440535,1.00472845,1800.4,1800.2,3.2078]
[1680545440837,1.00472845,1800.4,1800.1,3.2078]
[1680545441037,0.87231612,1800.3,1800.1,3.20003271]
[1680545449347,0.87231612,1800.3,1800.2,2.107]
[1680545451041,0.87231612,1800.4,1800.2,2.107]
[1680545451244,0.87231612,1800.4,1800.3,4.2078]
[1680545451644,0.87231612,1800.5,1800.3,5.3148]
[1680545451947,0.87231612,1800.5,1800.4,1.0]
[1680545453042,0.87231612,1800.6,1800.4,2.20203925]
[1680545453345,0.87231612,1800.6,1800.5,4.3148]
[1680545454237,0.87231612,1800.8,1800.5,5.3148]
[1680545454453,0.87231612,1800.8,1800.7,3.2078]
[1680545455347,0.87231612,1800.8,1800.7,5.4178]
[1680545455954,0.87231612,1800.8,1800.7,6.4178]
[1680545456142,0.87231612,1800.9,1800.7,6.4178]
[1680545456342,0.87231612,1800.9,1800.8,2.107]
[1680545456738,0.87154319,1800.9,1800.8,1.107]
[1680545457743,0.871453,1800.9,1800.8,1.107]
[1680545460047,1.16183372,1800.9,1800.7,4.3108]
[1680545460245,1.87146188,1800.8,1800.7,1.103]
[1680545460443,1.87146188,1800.8,1800.7,4.3108]
[1680545460644,1.87146188,1800.8,1800.7,3.2078]
[1680545460645,0.87146188,1800.8,1800.7,3.2078]
[1680545461045,3.26883372,1800.9,1800.7,3.2078]
[1680545461256,2.16183372,1800.8,1800.5,4.3188]
[1680545461447,0.8715304,1800.6,1800.5,4.3188]
[1680545462055,0.8715304,1800.6,1800.5,3.2078]
[1680545462457,0.8715304,1800.7,1800.5,3.2078]
[1680545462949,0.8715304,1800.8,1800.5,4.3168]
[1680545463150,0.8715304,1800.8,1800.7,3.2078]
[1680545465455,1.16183372,1800.9,1800.5,1.109]
[1680545465651,0.87151479,1800.7,1800.5,1.109]
[1680545465852,0.87151479,1800.7,1800.6,0.34380724]
[1680545466053,0.87151479,1800.7,1800.6,3.55160724]
[1680545468661,0.87151479,1800.8,1800.6,3.55160724]
[1680545469160,0.87151479,1800.8,1800.7,2.107]
[1680545469365,0.87151479,1800.9,1800.7,2.107]
[1680545469567,0.87151479,1800.9,1800.8,3.2078]
[1680545469759,0.87151479,1801.1,1800.8,5.3178]
[1680545469972,0.87151479,1801.1,1801.0,4.3188]
[1680545470161,0.87151479,1801.1,1801.0,3.2078]
[1680545470462,1.0,1801.1,1800.9,1.107]
[1680545470655,0.87121129,1801.0,1800.9,1.107]
[1680545470856,0.87121129,1801.0,1800.9,4.3148]
[1680545471055,0.87121129,1801.1,1800.9,4.3148]
[1680545471465,1.87121129,1801.1,1800.9,4.3148]
[1680545471962,0.87121129,1801.1,1800.9,4.3148]
[1680545472265,0.87121129,1801.1,1800.9,3.2078]
[1680545473765,1.87121129,1801.1,1800.8,1.107]
[1680545473965,0.87121129,1801.0,1800.8,1.107]
[1680545474164,6.7575604,1801.3,1800.9,11.672]
[1680545474165,1.4397604,1801.3,1800.9,11.672]
[1680545474463,0.87058496,1801.6,1801.2,1.111]
[1680545474769,0.87058496,1801.6,1801.5,1.107]
[1680545475154,1.87058496,1801.7,1801.5,1.107]
[1680545475359,0.87058496,1801.7,1801.5,1.107]
[1680545476469,0.87058496,1801.7,1801.4,4.3168]
[1680545476663,1.87058496,1801.7,1801.4,4.3168]
[1680545477369,0.87058496,1801.8,1801.6,4.3188]
[1680545477663,0.87058496,1801.9,1801.6,4.3188]
[1680545479261,1.87058496,1802.0,1801.6,4.3188]
[1680545479460,0.87058496,1802.0,1801.6,4.3188]
[1680545480862,1.98158496,1802.1,1801.8,3.2078]
[1680545482067,0.57812874,1802.0,1801.8,3.2078]
[1680545483673,1.4487137,1802.1,1801.8,3.2078]
[1680545484167,1.68812874,1802.0,1801.7,0.95342808]
[1680545484560,1.0,1801.9,1801.6,3.2078]
[1680545484972,1.111,1801.8,1801.7,0.92863393]
[1680545485475,1.111,1801.8,1801.6,3.2078]
[1680545485862,1.0,1801.7,1801.6,3.2078]
[1680545486665,1.0,1801.7,1801.6,3.69864151]
[1680545486869,1.0,1801.7,1801.6,0.49084151]
[1680545487075,1.0,1801.7,1801.4,3.2078]
[1680545488169,1.57812874,1801.7,1801.3,1.11]
[1680545488472,1.0,1801.5,1801.3,1.11]
[1680545491071,1.0,1801.5,1801.1,1.11]
[1680545491574,3.2078,1801.4,1801.1,1.11]
[1680545491768,1.0,1801.3,1801.1,1.11]
[1680545492168,1.0,1801.3,1801.0,1.11]
[1680545492369,2.68812874,1801.5,1801.0,1.11]
[1680545492574,3.2078,1801.4,1801.0,1.11]
[1680545492776,1.0,1801.3,1801.0,1.11]
[1680545492985,1.0,1801.3,1800.9,3.2078]
[1680545492986,2.11,1801.3,1800.9,3.2078]
[1680545493871,3.2078,1801.2,1800.9,3.2078]
[1680545494071,1.0,1801.1,1800.9,3.2078]
[1680545494976,2.11,1801.1,1800.9,3.2078]
[1680545495876,1.11,1801.1,1801.0,0.30504715]
[1680545496071,1.11,1801.1,1800.7,3.2078]
[1680545496274,1.11,1801.1,1800.6,1.11]
[1680545496470,1.0,1801.0,1800.6,1.11]
[1680545496879,4.2078,1801.0,1800.6,1.11]
[1680545497976,1.0,1801.0,1800.6,1.11]
[1680545498878,4.2078,1801.0,1800.6,1.11]
[1680545499579,4.78592874,1801.0,1800.6,1.11]
[1680545500577,1.11,1800.9,1800.5,4.3178]
[1680545503684,3.2078,1800.8,1800.5,4.3178]
[1680545504181,1.11,1800.9,1800.5,4.3178]
[1680545506181,1.4487137,1801.1,1800.8,1.11]
[1680545506483,0.57812874,1801.2,1801.0,1.11]
[1680545507389,0.57812874,1801.2,1801.1,3.2078]
[1680545507875,0.57812874,1801.2,1801.0,1.11]
[1680545508190,2.5587137,1801.1,1800.7,1.11]
[1680545508484,3.78592874,1801.0,1800.7,1.11]
[1680545508678,1.0,1800.9,1800.7,1.11]
[1680545509392,1.57812874,1800.9,1800.7,1.11]
[1680545509781,3.2078,1800.8,1800.7,1.11]
[1680545511086,0.57812874,1801.0,1800.7,1.41660445]
[1680545511290,1.68812874,1801.1,1800.7,1.41660445]
[1680545511493,2.5587137,1801.1,1800.8,3.2078]
[1680545512591,1.68812874,1801.1,1800.8,3.2078]
[1680545512787,0.57812874,1801.1,1800.9,1.11]
[1680545513487,0.57812874,1801.0,1800.7,1.41660445]
[1680545514080,1.57812874,1801.0,1800.7,1.41660445]
[1680545514482,0.57812874,1801.0,1800.7,1.41660445]
[1680545514896,2.68812874,1801.0,1800.7,0.30660445]
[1680545515090,1.0,1800.9,1800.5,1.11]
[1680545515488,2.68812874,1801.0,1800.5,1.11]
[1680545515689,1.68812874,1801.0,1800.5,1.11]
[1680545515990,1.68812874,1801.0,1800.6,1.0]
[1680545516183,0.57812874,1801.0,1800.7,1.11]
[1680545517288,0.57812874,1801.0,1800.8,3.2078]
[1680545517492,1.4487137,1801.1,1800.8,3.2078]
[1680545518189,1.13282483,1801.2,1801.0,4.3178]
[1680545518398,0.55469609,1801.2,1801.1,1.109]
[1680545518691,1.4487137,1801.3,1801.1,1.109]
[1680545518991,0.57812874,1801.2,1800.9,1.11]
[1680545519594,1.57812874,1801.2,1800.9,1.11]
[1680545519993,0.57812874,1801.2,1800.9,1.11]
[1680545521395,1.57812874,1801.2,1800.9,1.11]
[1680545521698,1.68812874,1801.0,1800.6,1.104]
[1680545521905,4.2078,1800.9,1800.6,1.104]
[1680545522097,3.78592874,1800.9,1800.6,1.104]
[1680545523100,4.78592874,1800.9,1800.6,1.104]
[1680545523295,1.11,1800.8,1800.4,4.3178]
[1680545523502,3.78592874,1800.7,1800.4,1.11]
[1680545523697,1.11,1800.6,1800.2,3.2078]
[1680545524002,2.11,1800.6,1800.2,3.2078]
[1680545524602,2.68812874,1800.6,1800.2,3.2078]
[1680545524899,2.11,1800.6,1800.2,3.2078]
[1680545525104,1.11,1800.6,1800.2,3.2078]
[1680545525302,3.2078,1800.5,1800.2,3.2078]
[1680545525598,4.89592874,1800.6,1800.2,3.2078]
[1680545526004,4.89592874,1800.6,1800.3,0.04085538]
[1680545527603,1.68812874,1800.6,1800.3,0.04085538]
[1680545528002,4.89592874,1800.6,1800.3,0.04085538]
[1680545530013,1.68812874,1800.6,1800.3,0.04085538]
[1680545531108,2.5587137,1800.6,1800.3,0.04085538]
[1680545531412,1.68812874,1800.6,1800.3,0.04085538]
[1680545532111,0.57812874,1800.5,1800.3,0.04085538]
[1680545532717,3.5587137,1800.6,1800.3,0.04085538]
[1680545533514,2.68812874,1800.6,1800.3,0.04085538]
[1680545534211,0.57812874,1800.5,1800.3,0.04085538]
[1680545534409,1.57812874,1800.5,1800.3,0.04085538]
[1680545534715,0.57812874,1800.5,1800.3,0.04085538]
[1680545535213,3.5587137,1800.6,1800.3,0.04085538]
[1680545535519,2.5587137,1800.6,1800.3,0.04085538]
[1680545536314,0.57812874,1800.5,1800.3,0.04085538]
[1680545536618,0.18467129,1800.4,1800.2,3.78684675]
[1680545538917,1.76280003,1800.4,1800.2,3.78684675]
[1680545539107,1.76280003,1800.4,1800.2,0.57904675]
[1680545539308,2.87280003,1800.4,1800.1,0.57904675]
[1680545539514,3.74338499,1800.4,1800.0,4.65386994]
[1680545539721,0.57812874,1800.3,1800.0,3.78684675]
[1680545540413,0.57812874,1800.3,1800.0,4.65386994]
[1680545540607,2.87280003,1800.4,1800.1,0.57904675]
[1680545541817,0.57812874,1800.3,1800.0,3.78684675]
[1680545542025,1.57812874,1800.3,1800.0,3.78684675]
[1680545542315,0.16803414,1800.2,1800.0,3.78684675]
[1680545542512,0.16803414,1800.2,1800.0,0.57904675]
[1680545542709,0.74616288,1800.2,1799.9,3.09501574]
[1680545543012,0.16803414,1800.2,1800.0,0.57904675]
[1680545543214,0.16803414,1800.2,1799.9,2.22799255]
[1680545545119,0.16803414,1800.2,1799.9,3.09501574]
[1680545545320,0.16803414,1800.2,1799.9,2.22799255]
[1680545547719,0.16803414,1800.2,1800.0,0.57904675]
[1680545547908,0.57812874,1800.3,1799.9,3.09501574]
[1680545548317,0.57812874,1800.3,1799.9,2.22799255]
[1680545549421,0.57409453,1800.3,1799.9,2.22799255]
[1680545550020,6.18838496,1800.4,1799.9,2.22799255]
[1680545552120,5.18838496,1800.4,1799.9,2.22799255]
[1680545552322,1.98058496,1800.4,1799.9,2.22799255]
[1680545552517,1.11,1800.4,1800.0,0.57904675]
[1680545552729,0.87058496,1800.5,1800.1,1.11]
[1680545553233,8.78440522,1800.7,1800.3,1.104]
[1680545553524,2.54932527,1800.7,1800.4,3.2078]
[1680545554128,1.43932527,1800.7,1800.5,1.11]
[1680545555923,1.43932527,1800.7,1800.1,1.86702319]
[1680545555924,5.24380116,1800.6,1800.1,1.68904675]
[1680545556220,4.3178,1800.4,1800.0,0.57904675]
[1680545556418,5.18838496,1800.4,1800.0,0.57904675]
[1680545556621,5.18838496,1800.4,1799.9,2.55606994]
[1680545556820,1.0,1800.3,1799.9,2.55606994]
[1680545557529,1.0,1800.3,1800.0,0.57904675]
[1680545557832,1.0,1800.3,1800.0,3.78684675]
[1680545559232,1.0,1800.3,1799.9,2.55606994]
[1680545559535,1.0,1800.3,1800.0,0.57904675]
[1680545560434,1.11,1800.2,1800.0,0.57904675]
[1680545560628,1.0,1800.1,1799.9,0.57904675]
[1680545560829,1.11,1800.2,1799.9,0.57904675]
[1680545562131,2.98058496,1800.3,1799.9,0.57904675]
[1680545564429,1.98058496,1800.3,1799.9,0.57904675]
[1680545565233,1.98058496,1800.3,1800.0,3.78684675]
[1680545565438,0.87058496,1800.4,1800.1,1.11]
[1680545565944,0.87058496,1800.4,1800.2,3.2078]
[1680545566141,0.87058496,1800.3,1800.2,3.78684675]
[1680545566664,0.87058496,1800.4,1800.2,4.07482319]
[1680545566838,0.87058496,1800.4,1800.3,0.5797707]
[1680545567141,0.87058496,1800.5,1800.3,0.5797707]
[1680545567345,0.87058496,1800.5,1800.4,3.2078]
[1680545569235,0.87058496,1800.5,1800.4,3.7875707]
[1680545569943,0.93000116,1800.6,1800.4,3.7875707]
[1680545570138,0.87058496,1800.5,1800.4,3.7875707]
[1680545570337,0.87058496,1800.5,1800.4,3.2078]
[1680545570538,0.87058496,1800.5,1800.4,3.7875707]
[1680545570838,0.93000116,1800.6,1800.4,3.7875707]
[1680545571043,0.0594498,1800.5,1800.4,5.17882319]
[1680545571337,0.87058496,1800.7,1800.4,5.17882319]
[1680545571536,0.87058496,1800.7,1800.6,3.2078]
[1680545571840,6.21288672,1800.5,1800.4,5.17882319]
[1680545573137,6.21288672,1800.5,1800.4,6.28882319]
[1680545573437,6.21288672,1800.5,1800.4,7.28882319]
[1680545574239,6.21288672,1800.5,1800.4,6.28882319]
[1680545574644,6.21288672,1800.5,1800.4,3.08102319]
[1680545575036,6.21288672,1800.5,1800.4,1.97102319]
[1680545575235,6.21288672,1800.5,1800.4,1.104]
[1680545576145,6.21288672,1800.5,1800.3,1.97702319]
[1680545577640,9.42068672,1800.5,1800.3,1.97702319]
[1680545578334,6.21288672,1800.5,1800.4,2.04125435]
[1680545578538,6.21288672,1800.5,1800.4,5.24905435]
[1680545579244,6.21288672,1800.5,1800.4,4.38203116]
[1680545579742,6.21288672,1800.5,1800.4,5.24905435]
[1680545580741,6.21288672,1800.5,1800.4,2.04125435]
[1680545581445,6.21288672,1800.5,1800.4,3.14525435]
[1680545581749,6.21288672,1800.5,1800.4,4.14525435]
[1680545582549,6.21288672,1800.5,1800.4,3.14525435]
[1680545583549,6.21288672,1800.5,1800.4,2.27823116]
[1680545584050,9.42068672,1800.5,1800.4,0.06423116]
[1680545584444,9.51396203,1800.5,1800.3,1.11]
[1680545584746,1.0,1800.4,1800.3,1.11]
[1680545585144,1.0,1800.4,1800.2,0.5690947]
[1680545585337,1.0,1800.4,1800.1,1.97702319]
[1680545585548,3.2078,1800.3,1800.1,1.97702319]
[1680545585943,0.18994706,1800.2,1800.1,1.11]
[1680545586146,1.18994706,1800.2,1800.1,1.11]
[1680545586352,0.18994706,1800.2,1800.1,1.11]
[1680545587652,3.39774706,1800.2,1800.1,1.11]
[1680545588047,3.39774706,1800.2,1800.0,0.86702319]
[1680545592250,0.18994706,1800.2,1800.1,0.86702319]
[1680545592448,0.18994706,1800.2,1800.1,1.86702319]
[1680545592752,11.40127168,1800.5,1800.1,1.86702319]
[1680545593142,0.18633208,1800.4,1800.1,1.86702319]
[1680545593341,0.18633208,1800.4,1800.1,0.86702319]
[1680545593543,1.18633208,1800.4,1800.1,0.86702319]
[1680545593944,0.18633208,1800.4,1800.1,0.86702319]
[1680545596650,3.2078,1800.3,1800.0,1.97702319]
[1680545597152,3.2078,1800.1,1800.0,1.97702319]
[1680545597350,3.2078,1800.1,1800.0,0.86702319]
[1680545597751,3.49179156,1800.1,1800.0,0.86702319]
[1680545599258,3.49179156,1800.1,1799.8,2.26276294]
[1680545599259,3.49179156,1800.1,1799.9,0.86702319]
[1680545599456,1.87058496,1800.3,1799.9,0.86702319]
[1680545599457,0.87058496,1800.3,1799.9,0.86702319]
[1680545599648,1.59238563,1800.5,1800.2,3.36776294]
[1680545599956,1.59238563,1800.5,1800.4,2.22]
[1680545600260,1.59238563,1800.5,1800.4,4.08846151]
[1680545600849,1.59238563,1800.5,1800.4,6.29626151]
[1680545601055,1.59238563,1800.5,1800.4,6.56939224]
[1680545601560,1.59238563,1800.5,1800.4,1.38313073]
[1680545606851,1.59238563,1800.5,1800.4,0.27313073]
[1680545610065,7.07096558,1800.5,1800.4,0.27313073]
[1680545610259,7.07096558,1800.5,1800.0,0.86846151]
[1680545610460,3.2078,1800.2,1800.0,0.86846151]
[1680545610662,4.3178,1800.2,1800.0,0.86846151]
[1680545610863,1.08968028,1800.1,1800.0,0.86846151]
[1680545612268,1.08968028,1800.1,1799.9,0.86846151]
[1680545612661,1.08968028,1800.1,1800.0,0.86846151]
[1680545613172,1.08968028,1800.1,1799.9,0.86846151]
[1680545620767,0.08968028,1800.1,1799.9,0.86846151]
[1680545620964,1.0,1800.1,1799.9,0.86846151]
[1680545621270,0.07685775,1800.0,1799.8,0.86846151]
[1680545624475,0.07685775,1800.0,1799.9,0.86846151]
[1680545625373,0.07685775,1800.0,1799.9,1.97846151]
[1680545625578,0.07685775,1800.0,1799.9,2.26376294]
[1680545625768,7.80130278,1800.5,1799.9,2.26376294]
[1680545625974,1.94767415,1800.4,1800.1,1.104]
[1680545626175,1.07520409,1800.4,1800.1,1.104]
[1680545626681,1.07520409,1800.4,1800.1,1.97291119]
[1680545626981,0.07520409,1800.4,1800.1,1.104]
[1680545627175,0.94767415,1800.4,1800.1,1.104]
[1680545627376,1.07520409,1800.4,1800.1,1.104]
[1680545627572,0.07520409,1800.4,1800.1,1.97291119]
[1680545629079,1.07520409,1800.4,1800.1,1.97291119]
[1680545629278,1.94767415,1800.4,1800.1,1.97291119]
[1680545629477,1.94767415,1800.4,1800.1,1.104]
[1680545629780,1.0,1800.2,1799.9,1.97891119]
[1680545630380,1.0,1800.2,1800.0,0.86891119]
[1680545630982,0.07521672,1800.1,1799.9,1.97891119]
[1680545631373,1.0,1800.2,1799.9,1.97891119]
[1680545631978,6.18627006,1800.3,1799.9,1.97891119]
[1680545632977,5.3138,1800.3,1800.0,0.86891119]
[1680545633182,4.3138,1800.3,1800.0,0.86891119]
[1680545633484,1.0,1800.2,1800.0,0.86891119]
[1680545633681,1.0,1800.2,1799.9,1.97891119]
[1680545634280,1.0,1800.2,1800.0,0.86891119]
[1680545634777,3.2078,1800.1,1799.9,1.97891119]
[1680545634978,3.2078,1800.1,1800.0,0.86891119]
[1680545635379,3.2078,1800.1,1799.9,1.97891119]
[1680545635886,3.2078,1800.1,1799.9,1.97791119]
[1680545636087,1.0,1800.2,1800.0,0.86891119]
[1680545636285,3.2078,1800.1,1800.0,0.86891119]
[1680545636593,1.0,1800.3,1800.0,0.86891119]
[1680545637287,4.08027006,1800.4,1800.1,1.109]
[1680545637681,1.11,1800.3,1799.9,1.97291119]
[1680545637885,3.2078,1800.2,1799.9,1.97291119]
[1680545638088,4.2078,1800.2,1799.9,1.97291119]
[1680545638684,1.11,1800.3,1800.0,0.86891119]
[1680545638881,5.08027006,1800.4,1800.1,1.11]
[1680545639182,3.00770278,1800.5,1800.1,1.11]
[1680545639388,3.00770278,1800.5,1800.1,1.97891119]
[1680545639585,3.00770278,1800.5,1800.1,5.18671119]
[1680545640377,3.00770278,1800.5,1800.3,1.109]
[1680545644789,4.00770278,1800.5,1800.3,1.109]
[1680545645193,3.2078,1800.4,1800.3,1.109]
[1680545645991,3.28305479,1800.4,1800.3,1.109]
[1680545646398,5.15552485,1800.4,1800.2,0.56381843]
[1680545646588,5.15552485,1800.4,1800.1,1.11]
[1680545646788,1.0,1800.3,1800.1,1.11]
[1680545646994,2.11,1800.3,1800.0,0.86891119]
[1680545647490,2.98247006,1800.3,1799.9,1.97791119]
[1680545647694,2.11,1800.3,1800.0,0.86891119]
[1680545648098,3.2078,1800.2,1800.0,0.86891119]
[1680545648498,4.08027006,1800.2,1799.9,1.97791119]
[1680545648689,1.0,1800.1,1799.9,1.97791119]
[1680545649792,4.08027006,1800.2,1799.9,1.97791119]
[1680545650290,1.87247006,1800.1,1799.9,1.109]
[1680545650896,3.2078,1800.0,1799.9,1.109]
[1680545651492,3.2078,1800.0,1799.9,1.97791119]
[1680545651990,0.87247006,1800.2,1799.9,0.86891119]
[1680545652189,0.87247006,1800.2,1799.9,1.97791119]
[1680545653998,0.87247006,1800.2,1800.0,0.86891119]
[1680545655498,0.87247006,1800.1,1800.0,0.86891119]
[1680545655702,4.08027006,1800.1,1799.9,1.97791119]
[1680545656001,4.08027006,1800.1,1800.0,0.86891119]
[1680545657606,2.125497,1800.5,1800.1,9.645]
[1680545657789,1.59238563,1800.5,1800.4,3.08316234]
[1680545657989,1.59238563,1800.5,1800.4,4.25921635]
[1680545658296,1.59238563,1800.5,1800.4,2.15521635]
[1680545658497,2.80678885,1800.5,1800.3,1.97416234]
[1680545658708,5.565,1800.3,1800.1,1.16021645]
[1680545658896,5.0,1800.1,1799.7,1.16021645]
[1680545659093,4.3178,1799.8,1799.5,1.16021645]
[1680545659292,4.2078,1799.8,1799.5,1.16021645]
[1680545659999,1.16507882,1800.0,1799.7,1.109]
[1680545660212,4.37287882,1800.1,1799.7,1.109]
[1680545660799,4.37287882,1800.1,1799.7,2.26921645]
[1680545661305,1.11,1800.0,1799.6,1.16021645]
[1680545661501,3.27507882,1800.0,1799.5,2.27021645]
[1680545661694,4.2078,1799.9,1799.5,3.72048701]
[1680545662005,3.2078,1799.9,1799.6,1.16021645]
[1680545662198,3.2078,1799.9,1799.7,1.104]
[1680545665303,0.42941724,1799.8,1799.7,1.104]
[1680545665607,3.2078,1799.9,1799.7,1.104]
[1680545666003,3.2078,1799.9,1799.7,1.67219951]
[1680545668303,3.2078,1799.9,1799.7,0.56819951]
[1680545668500,1.0,1799.8,1799.5,1.16021645]
[1680545668701,3.2078,1799.7,1799.4,1.109]
[1680545669010,3.2078,1799.5,1799.3,1.16021645]
[1680545669403,4.3178,1799.7,1799.3,1.16021645]
[1680545669607,4.89939955,1799.7,1799.3,1.16021645]
[1680545671302,4.3178,1799.7,1799.2,3.27021645]
[1680545671706,4.3178,1799.7,1799.3,1.16021645]
[1680545671916,4.3178,1799.7,1799.3,1.0]
[1680545672109,3.2078,1799.7,1799.3,3.27021645]
[1680545672415,3.2078,1799.7,1799.3,2.27021645]
[1680545673506,3.2078,1799.7,1799.3,1.11]
[1680545673711,1.11,1799.8,1799.3,2.27021645]
[1680545673913,3.78939955,1799.9,1799.5,1.11]
[1680545675311,4.78939955,1799.9,1799.5,1.11]
[1680545675511,3.78939955,1799.9,1799.5,1.11]
[1680545676116,0.59065763,1799.8,1799.5,1.11]
[1680545676331,4.78939955,1799.9,1799.5,1.11]
[1680545676512,0.58159955,1799.9,1799.5,1.11]
[1680545677017,8.57499955,1800.0,1799.7,1.11]
[1680545677217,0.58159955,1800.1,1799.7,1.11]
[1680545678015,0.58159955,1800.1,1799.9,1.104]
[1680545678623,3.2078,1800.0,1799.7,1.11]
[1680545681425,3.78939955,1800.0,1799.7,1.11]
[1680545682918,3.2078,1800.0,1799.7,1.11]
[1680545685920,3.78939955,1800.0,1799.7,1.11]
[1680545687417,0.58159955,1800.0,1799.7,1.11]
[1680545687726,0.58159955,1800.1,1799.7,4.3178]
[1680545687927,0.58159955,1800.1,1799.7,5.3178]
[1680545689221,0.58159955,1800.0,1799.7,1.11]
[1680545689925,0.58159955,1799.9,1799.7,1.11]
[1680545690529,0.58159955,1799.9,1799.6,1.67766009]
[1680545690721,0.58159955,1799.9,1799.6,1.11]
[1680545691226,0.42951419,1799.8,1799.6,1.11]
[1680545691622,0.58159955,1799.9,1799.7,0.58004411]
[1680545694434,3.78939955,1799.8,1799.7,0.58004411]
[1680545700934,0.58159955,1799.8,1799.7,0.58004411]
[1680545701242,0.58159955,1799.9,1799.7,1.11]
[1680545701541,4.37287882,1800.0,1799.8,0.58026002]
[1680545701732,0.58221687,1799.9,1799.8,0.58026002]
[1680545703432,0.58221687,1799.9,1799.7,3.27021645]
[1680545703828,0.58221687,1799.9,1799.8,1.104]
[1680545704942,0.58221687,1800.0,1799.8,1.104]
[1680545705144,0.58221687,1800.0,1799.9,2.11]
[1680545705332,0.58221687,1800.1,1799.9,3.27021645]
[1680545705537,0.58221687,1800.1,1800.0,1.11]
[1680545706043,0.73485488,1800.1,1800.0,1.11]
[1680545706530,0.15263801,1800.1,1800.0,1.11]
[1680545706737,0.58221687,1800.2,1800.0,2.11]
[1680545706939,0.58221687,1800.2,1800.1,0.57995207]
[1680545707243,0.58221687,1800.2,1800.1,1.57995207]
[1680545707440,0.58221687,1800.3,1800.1,1.0]
[1680545707649,0.58221687,1800.3,1800.2,0.57989289]
[1680545708143,0.58221687,1800.3,1800.2,1.68989289]
[1680545708641,0.58221687,1800.4,1800.2,1.11]
[1680545708841,0.58221687,1800.4,1800.3,0.57946541]
[1680545709149,0.58221687,1800.4,1800.2,1.68946541]
[1680545710446,2.1746025,1800.5,1800.2,1.68946541]
[1680545712040,2.1746025,1800.5,1800.3,1.109]
[1680545712243,3.79001687,1800.4,1800.2,0.57946541]
[1680545712546,1.58221687,1800.3,1800.1,0.56776667]
[1680545712746,3.79001687,1800.2,1799.9,1.68946541]
[1680545715943,1.58221687,1800.1,1799.8,0.57946541]
[1680545716339,3.2078,1800.0,1799.8,0.57946541]
[1680545716544,0.58221687,1800.3,1799.9,3.2078]
[1680545716746,0.58221687,1800.4,1800.2,1.11]
[1680545716941,1.58221687,1800.4,1800.2,1.11]
[1680545717141,0.58221687,1800.3,1800.0,1.68927914]
[1680545717342,0.58141961,1800.2,1800.0,1.68927914]
[1680545717541,1.58141961,1800.3,1800.0,1.68927914]
[1680545717744,1.58141961,1800.3,1800.1,0.57927914]
[1680545718343,0.58141961,1800.3,1800.1,0.57927914]
[1680545720046,0.58141961,1800.2,1800.1,0.57927914]
[1680545720249,4.79214184,1800.2,1799.9,0.57927914]
[1680545720448,0.58154413,1800.1,1799.9,0.57927914]
[1680545720743,3.2078,1800.0,1799.8,2.55824626]
[1680545720942,3.2078,1800.0,1799.9,0.57927914]
[1680545721351,3.2078,1800.0,1799.8,2.55824626]
[1680545721547,3.34107524,1800.0,1799.8,0.57927914]
[1680545722746,3.92261937,1800.0,1799.8,0.57927914]
[1680545726355,3.92261937,1800.0,1799.8,0.57239729]
[1680545731549,3.92261937,1800.0,1799.7,0.86896712]
[1680545732152,5.03261937,1800.0,1799.7,0.86896712]
[1680545732550,5.90483455,1800.0,1799.7,0.86896712]
[1680545733155,5.90483455,1800.0,1799.6,4.20287084]
[1680545733652,4.89934413,1799.8,1799.6,2.22490372]
[1680545733953,1.11,1799.7,1799.5,0.86896712]
[1680545734158,3.2078,1799.6,1799.4,0.86896712]
[1680545734467,4.3138,1799.6,1799.4,0.86896712]
[1680545734750,4.3138,1799.6,1799.3,0.86896712]
[1680545735550,4.3138,1799.6,1799.3,1.86896712]
[1680545735756,0.58154413,1799.8,1799.5,1.104]
[1680545735951,0.58154413,1799.9,1799.6,1.0]
[1680545736154,0.58154413,1799.9,1799.6,1.86896712]
[1680545736364,5.90083455,1800.0,1799.6,1.86896712]